bitfinex-derivatives/quotes_SOLF0:USTF0_20241229
["timestamp","ask_amount","ask_price","bid_price","bid_amount"]
[1735481501779,1.4692,196.94,196.85,2.9]
[1735481501978,0.8000405,196.93,196.85,2.9]
[1735481502680,0.8000405,196.93,196.85,5.4438]
[1735481502980,2.9,196.97,196.85,5.4438]
[1735481503174,0.80003508,196.96,196.85,2.9]
[1735481504179,0.80003508,196.96,196.81,63.8683282]
[1735481505278,0.8000567,196.95,196.81,63.8683282]
[1735481505478,2.9,196.97,196.81,63.8683282]
[1735481505479,0.8000567,196.94,196.81,63.8683282]
[1735481505677,0.8000567,196.93,196.81,63.8683282]
[1735481505879,0.8000567,196.92,196.81,63.8683282]
[1735481506080,6.0206,196.99,196.86,2.5438]
[1735481506281,0.800056,196.98,196.86,2.5438]
[1735481506984,0.80005516,196.97,196.86,2.5438]
[1735481507182,0.80005516,196.96,196.86,2.5438]
[1735481507385,0.80005516,196.95,196.86,2.5438]
[1735481507584,0.80005516,196.94,196.86,2.5438]
[1735481507781,0.80005516,196.93,196.81,63.8683282]
[1735481507978,0.80005516,196.92,196.83,2.5441]
[1735481508282,6.0206,196.99,196.83,2.5441]
[1735481508483,0.80005539,196.98,196.83,2.5441]
[1735481508682,0.80005539,196.98,196.81,66.4126282]
[1735481509186,0.80007133,196.97,196.81,60.9683282]
[1735481509487,0.80007133,196.96,196.81,60.9683282]
[1735481509785,0.80007133,196.95,196.81,60.9683282]
[1735481509981,3.70007133,196.94,196.81,60.9683282]
[1735481510179,3.70007133,196.93,196.81,60.9683282]
[1735481510375,6.76767133,196.92,196.81,60.9683282]
[1735481510585,0.80007133,196.91,196.81,60.9683282]
[1735481511481,0.80023953,196.9,196.81,60.9683282]
[1735481511682,0.80023953,196.89,196.81,60.9683282]
[1735481511884,0.80023953,196.88,196.81,60.9683282]
[1735481512082,5.9676,196.92,196.81,60.9683282]
[1735481512283,0.80024415,196.91,196.81,60.9683282]
[1735481513979,5.9676,196.92,196.81,3.85784986]
[1735481514182,0.80036981,196.91,196.81,3.85784986]
[1735481516685,0.80033126,196.9,196.81,3.85784986]
[1735481516885,0.80033126,196.89,196.81,3.85784986]
[1735481517086,0.80033126,196.88,196.81,3.85784986]
[1735481517286,0.80033126,196.87,196.81,3.85784986]
[1735481517491,0.80033126,196.86,196.81,3.85784986]
[1735481517688,5.9676,196.92,196.81,3.85784986]
[1735481517888,0.80032695,196.91,196.81,3.85784986]
[1735481518089,0.80033791,196.9,196.81,3.85784986]
[1735481518391,0.80033791,196.89,196.81,3.85784986]
[1735481518591,0.80033791,196.88,196.81,3.85784986]
[1735481518790,0.80033791,196.87,196.81,3.85784986]
[1735481518990,0.80033791,196.86,196.81,3.85784986]
[1735481519187,5.9676,196.92,196.81,3.85784986]
[1735481519383,0.80033125,196.91,196.81,3.85784986]
[1735481519892,11.97842966,196.91,196.81,3.85784986]
[1735481520092,0.80033125,196.9,196.81,3.85784986]
[1735481523296,21.80783148,196.9,196.81,3.85784986]
[1735481523490,0.80033125,196.89,196.81,3.85784986]
[1735481525994,21.00750023,196.9,196.81,3.85784986]
[1735481526192,0.80033114,196.89,196.81,3.85784986]
[1735481527799,8.41406279,196.89,196.81,3.85784986]
[1735481528000,0.80033114,196.88,196.81,3.85784986]
[1735481529501,0.80033114,196.87,196.81,3.85784986]
[1735481529699,0.80033114,196.89,196.81,3.85784986]
[1735481529899,0.80033114,196.88,196.81,3.85784986]
[1735481530101,0.80033114,196.87,196.81,3.85784986]
[1735481530400,21.00750023,196.9,196.81,3.85784986]
[1735481530401,0.80033114,196.86,196.81,3.85784986]
[1735481530601,0.80033114,196.85,196.81,3.85784986]
[1735481530801,21.00750023,196.9,196.81,3.85784986]
[1735481531005,0.80033428,196.89,196.81,3.85784986]
[1735481531206,0.80040325,196.89,196.81,3.85784986]
[1735481531402,21.80790348,196.89,196.81,3.85784986]
[1735481531600,0.80040325,196.88,196.81,3.85784986]
[1735481532705,32.19731456,196.87,196.81,3.85784986]
[1735481532903,0.80040325,196.86,196.81,3.85784986]
[1735481533497,2.9,196.85,196.59,5.0946]
[1735481533702,0.80040325,196.84,196.59,103.34312606]
[1735481533903,0.80057912,196.83,196.64,2.9]
[1735481534098,0.80057912,196.82,196.64,2.9]
[1735481534302,0.80057912,196.81,196.65,2.9]
[1735481534507,0.80057912,196.8,196.65,2.9]
[1735481534699,0.80057912,196.79,196.69,2.5459]
[1735481535002,0.80057912,196.78,196.7,2.9]
[1735481535205,21.00750023,196.84,196.7,2.9]
[1735481535406,0.80062301,196.83,196.7,2.9]
[1735481535805,21.80812324,196.83,196.7,2.9]
[1735481536101,21.00750023,196.83,196.7,2.9]
[1735481536402,0.80061826,196.82,196.7,2.9]
[1735481537003,3.70061826,196.82,196.7,2.9]
[1735481537204,0.80061826,196.81,196.7,5.4458]
[1735481537808,0.80061826,196.8,196.7,5.4458]
[1735481538104,0.80061826,196.79,196.7,5.4458]
[1735481538306,0.80061826,196.78,196.7,5.4458]
[1735481538609,2.9,196.82,196.7,5.4458]
[1735481538803,0.80062053,196.81,196.7,5.4458]
[1735481539911,0.80062054,196.8,196.67,2.5462]
[1735481540207,0.80062054,196.79,196.67,2.9]
[1735481540408,0.80062054,196.78,196.67,2.9]
[1735481540708,0.80062054,196.77,196.67,2.9]
[1735481540902,16.81005234,196.82,196.67,2.9]
[1735481541208,0.80064178,196.81,196.67,2.9]
[1735481541410,0.80064178,196.81,196.68,2.5461]
[1735481542903,0.80064178,196.81,196.63,5.55703848]
[1735481543104,0.80064178,196.81,196.64,2.9]
[1735481543306,0.80087408,196.8,196.64,2.9]
[1735481543604,16.81089594,196.82,196.64,5.4466]
[1735481543805,0.80088366,196.81,196.64,5.4466]
[1735481544609,21.00750023,196.79,196.64,5.4466]
[1735481544809,0.80088366,196.78,196.64,5.4466]
[1735481545010,2.9,196.77,196.64,5.4466]
[1735481545209,0.80088366,196.76,196.64,5.4466]
[1735481545904,0.80088366,196.76,196.64,2.9]
[1735481546304,0.80091682,196.75,196.64,2.9]
[1735481546613,0.80091682,196.76,196.64,5.4466]
[1735481546810,2.9,196.77,196.64,2.9]
[1735481547006,0.80092099,196.76,196.64,2.9]
[1735481547402,0.80092099,196.76,196.63,8.10363848]
[1735481547611,0.80092099,196.76,196.63,11.00363848]
[1735481548112,2.9,196.75,196.63,11.00363848]
[1735481548412,0.80092099,196.74,196.63,11.00363848]
[1735481549015,2.9,196.75,196.63,11.00363848]
[1735481549311,0.8009178,196.74,196.63,8.10363848]
[1735481550313,0.8009178,196.74,196.63,5.55703848]
[1735481550612,0.8009178,196.73,196.63,5.55703848]
[1735481550915,21.00750023,196.79,196.63,5.55703848]
[1735481551112,0.80079806,196.78,196.63,5.55703848]
[1735481551418,0.80079806,196.78,196.68,2.546]
[1735481551614,0.80079806,196.78,196.69,2.9]
[1735481552212,0.80079806,196.77,196.69,2.9]
[1735481552511,0.80079806,196.76,196.69,2.9]
[1735481552711,0.80079806,196.75,196.69,2.9]
[1735481552912,26.36122419,196.82,196.69,2.9]
[1735481553118,0.80078696,196.81,196.69,2.9]
[1735481553715,8.39286304,196.81,196.69,2.9]
[1735481553912,0.80078696,196.8,196.63,5.55703848]
[1735481554108,0.80078696,196.8,196.63,11.00373848]
[1735481555114,21.80828719,196.8,196.63,11.00373848]
[1735481555315,0.80078696,196.79,196.63,11.00373848]
[1735481555514,8.39286304,196.79,196.63,8.45703848]
[1735481555711,0.80078696,196.78,196.64,2.5466]
[1735481555911,2.9,196.77,196.64,2.5466]
[1735481556113,0.80078696,196.76,196.64,2.5466]
[1735481557813,0.80078696,196.76,196.63,11.00373848]
[1735481559117,0.80093762,196.75,196.63,8.10373848]
[1735481559311,0.80093762,196.74,196.64,2.9]
[1735481559511,0.80093762,196.73,196.64,2.9]
[1735481559710,0.80093762,196.72,196.64,2.9]
[1735481559911,2.9,196.77,196.64,2.9]
[1735481560114,0.80093778,196.76,196.64,2.9]
[1735481560819,0.80093778,196.75,196.64,2.9]
[1735481561412,0.8009312,196.74,196.64,2.9]
[1735481561613,0.8009312,196.73,196.64,2.9]
[1735481561814,0.8009312,196.72,196.64,2.9]
[1735481562016,2.9,196.76,196.64,2.9]
[1735481562215,0.8009307,196.75,196.64,2.9]
[1735481564220,2.9,196.76,196.64,2.9]
[1735481564421,0.80092632,196.75,196.64,2.9]
[1735481565122,24.12270023,196.78,196.64,2.9]
[1735481565123,21.00750023,196.78,196.64,2.9]
[1735481565322,0.80081698,196.77,196.64,2.9]
[1735481566617,0.80081698,196.77,196.67,2.5462]
[1735481566821,0.80074288,196.76,196.67,2.5462]
[1735481567022,7.60413933,196.81,196.67,2.5462]
[1735481567222,0.80073427,196.8,196.67,2.5462]
[1735481568221,0.80073427,196.8,196.63,5.55703848]
[1735481568222,4.62208005,196.8,196.63,5.55703848]
[1735481568418,0.80073427,196.79,196.63,5.55703848]
[1735481568821,4.62208005,196.79,196.63,5.55703848]
[1735481569024,0.80073427,196.78,196.55,27.61057733]
[1735481569327,3.70125137,196.77,196.56,2.9]
[1735481569525,0.80125137,196.76,196.56,5.4476]
[1735481569726,21.00750023,196.73,196.56,5.4476]
[1735481569922,9.03719715,196.72,196.56,5.4476]
[1735481570128,0.80125137,196.71,196.56,5.4476]
[1735481570626,0.80125137,196.71,196.56,2.5476]
[1735481570825,0.80125137,196.71,196.57,2.9]
[1735481571025,0.80125137,196.71,196.57,5.4475]
[1735481571229,32.20957435,196.7,196.57,5.4475]
[1735481571530,0.80125137,196.69,196.57,5.4475]
[1735481571731,32.20957435,196.7,196.57,5.4475]
[1735481571930,0.80125492,196.68,196.57,5.4475]
[1735481572127,0.80125491,196.67,196.57,5.4475]
[1735481572320,0.80125491,196.67,196.57,2.9]
[1735481572625,0.80125491,196.67,196.58,2.5473]
[1735481572824,0.80125491,196.67,196.57,2.9]
[1735481573331,0.80125492,196.68,196.57,2.9]
[1735481573531,0.80125492,196.68,196.6,2.547]
[1735481575024,0.80125492,196.68,196.58,2.5473]
[1735481575228,0.80125492,196.68,196.57,2.9]
[1735481576033,0.80125492,196.68,196.59,2.5471]
[1735481576631,0.80125492,196.68,196.6,2.5471]
[1735481578629,0.80125492,196.68,196.57,2.9]
[1735481579228,0.80125492,196.68,196.62,2.5468]
[1735481579430,7.62541319,196.72,196.63,2.92]
[1735481579633,0.80106276,196.71,196.63,2.92]
[1735481580331,0.80106276,196.7,196.63,2.92]
[1735481580532,0.80106276,196.69,196.63,2.92]
[1735481580733,11.44712581,196.73,196.63,5.4667]
[1735481580930,0.80106719,196.72,196.63,5.4667]
[1735481581338,0.80106719,196.71,196.63,5.4667]
[1735481581633,11.44712581,196.73,196.63,5.4667]
[1735481581634,0.80106719,196.7,196.63,5.4667]
[1735481581832,0.80106719,196.69,196.63,5.4667]
[1735481582032,11.44712581,196.73,196.63,5.4667]
[1735481582234,0.8010672,196.72,196.63,5.4667]
[1735481583939,0.8010672,196.72,196.64,2.5466]
[1735481584141,0.8010672,196.72,196.63,2.92]
[1735481584539,0.8010672,196.72,196.66,2.5463]
[1735481584741,0.8010672,196.71,196.66,2.5463]
[1735481584938,21.00750023,196.74,196.63,6.78316648]
[1735481585136,0.80097585,196.73,196.63,6.78316648]
[1735481585343,0.80097585,196.73,196.65,2.5464]
[1735481585642,0.80097585,196.72,196.65,2.5464]
[1735481585840,0.80097585,196.71,196.65,2.5464]
[1735481586043,11.44913369,196.75,196.65,2.5464]
[1735481586233,0.80096048,196.74,196.65,2.5464]
[1735481588937,0.80095938,196.73,196.65,2.5464]
[1735481589141,0.80095938,196.72,196.65,2.5464]
[1735481589445,0.80095938,196.71,196.65,2.5464]
[1735481589642,11.44911749,196.75,196.65,2.5464]
[1735481589845,0.8009644,196.74,196.65,2.5464]
[1735481594039,11.44911749,196.75,196.65,2.5464]
[1735481594240,0.80096423,196.74,196.65,2.5464]
[1735481595142,0.80096423,196.74,196.66,2.5463]
[1735481596041,0.80096423,196.74,196.63,6.78316648]
[1735481596243,0.80096423,196.74,196.63,3.86316648]
[1735481596442,1.4783,196.73,196.63,3.86316648]
[1735481596645,3.72096423,196.72,196.63,3.86316648]
[1735481596846,0.80096423,196.71,196.63,3.86316648]
[1735481597449,12.25008172,196.71,196.63,3.86316648]
[1735481597639,0.80096423,196.7,196.63,3.86316648]
[1735481598148,3.1612,196.69,196.63,3.86316648]
[1735481598350,0.80096423,196.68,196.63,3.86316648]
[1735481598948,0.80096423,196.68,196.61,57.18845108]
[1735481601649,6.0812,196.69,196.61,57.18845108]
[1735481601650,0.80115589,196.67,196.61,57.18845108]
[1735481601849,0.80115589,196.66,196.61,57.18845108]
[1735481602149,0.80115589,196.65,196.61,57.18845108]
[1735481602341,0.80115589,196.64,196.61,57.18845108]
[1735481602538,6.0812,196.69,196.61,57.18845108]
[1735481602743,0.8012772,196.68,196.61,57.18845108]
[1735481602943,4.62254785,196.68,196.61,57.18845108]
[1735481603143,0.8012772,196.67,196.61,57.18845108]
[1735481604148,8.42912404,196.67,196.61,57.18845108]
[1735481604349,0.8012772,196.66,196.61,57.18845108]
[1735481604845,7.62784684,196.67,196.61,57.18845108]
[1735481605052,0.80128271,196.66,196.61,57.18845108]
[1735481605645,2.36488271,196.66,196.56,2.5476]
[1735481605846,0.80128271,196.65,196.56,2.5476]
[1735481608552,8.42912955,196.65,196.56,2.5476]
[1735481608753,0.80128271,196.64,196.56,2.5476]
[1735481610256,0.80128271,196.63,196.56,2.5476]
[1735481610452,0.80128271,196.62,196.56,2.5476]
[1735481610658,0.80128271,196.65,196.56,2.5476]
[1735481610857,0.80141824,196.64,196.56,2.5476]
[1735481611057,0.80141824,196.64,196.54,2.9]
[1735481611058,0.80141824,196.63,196.54,2.9]
[1735481611259,2.45568793,196.66,196.54,2.9]
[1735481611458,0.80124107,196.65,196.59,2.5471]
[1735481612057,2.45568793,196.66,196.59,2.5471]
[1735481612260,2.45568793,196.66,196.6,2.5471]
[1735481613660,2.45568793,196.66,196.54,2.9]
[1735481613858,2.45568793,196.66,196.59,2.5472]
[1735481616361,6.0612,196.69,196.59,2.5472]
[1735481616562,0.80119215,196.68,196.59,2.5472]
[1735481619372,0.80119213,196.67,196.59,2.5472]
[1735481619672,0.80119213,196.66,196.59,2.5472]
[1735481619877,0.80119213,196.68,196.59,2.5472]
[1735481620171,0.8011925,196.67,196.59,2.5472]
[1735481620373,0.8011925,196.66,196.59,2.5472]
[1735481620573,6.0612,196.69,196.59,2.5472]
[1735481620774,0.80118808,196.68,196.59,2.5472]
[1735481621878,1.60237622,196.67,196.59,2.5472]
[1735481622077,0.80118811,196.66,196.59,2.5472]
[1735481624371,0.80118811,196.67,196.59,5.4472]
[1735481624576,0.80119165,196.66,196.59,5.4472]
[1735481625568,0.80119165,196.66,196.59,2.9]
[1735481626574,0.80119165,196.66,196.59,5.4472]
[1735481626877,0.80118811,196.67,196.59,5.4472]
[1735481627178,0.80119251,196.66,196.59,5.4472]
[1735481627375,0.80118811,196.67,196.59,5.4472]
[1735481627575,0.80119251,196.66,196.59,5.4472]
[1735481629378,0.80118811,196.67,196.59,5.4472]
[1735481629579,0.80119251,196.66,196.59,5.4472]
[1735481630380,0.80119251,196.66,196.6,2.5471]
[1735481630582,3.1612,196.69,196.59,2.9]
[1735481630782,0.80118809,196.68,196.59,5.4472]
[1735481631479,0.80118809,196.68,196.56,3.86457125]
[1735481632077,0.80118809,196.68,196.57,2.5475]
[1735481632273,0.80118809,196.68,196.56,3.86457125]
[1735481632883,0.80118809,196.68,196.59,2.5471]
[1735481633083,4.62340438,196.68,196.59,2.5471]
[1735481633275,0.80118809,196.67,196.59,2.5471]
[1735481637782,0.80118809,196.67,196.56,3.86457125]
[1735481638483,0.80118809,196.67,196.6,2.547]
[1735481638883,0.80118809,196.67,196.56,3.86457125]
[1735481639085,0.80118809,196.67,196.62,2.5468]
[1735481639284,0.80118809,196.66,196.62,2.5468]
[1735481639483,0.80118809,196.65,196.62,2.5468]
[1735481639679,14.61126313,196.69,196.62,2.5468]
[1735481639883,0.80121613,196.68,196.62,2.5468]
[1735481641485,0.80121592,196.67,196.62,2.5468]
[1735481641682,0.80121592,196.66,196.62,2.5468]
[1735481641984,0.80121592,196.65,196.62,2.5468]
[1735481642180,3.1612,196.69,196.61,2.547]
[1735481642380,0.80121592,196.68,196.61,2.547]
[1735481644186,0.80121582,196.67,196.61,2.547]
[1735481644389,0.80121582,196.66,196.61,2.547]
[1735481644693,3.1612,196.69,196.61,2.547]
[1735481644986,0.80121582,196.68,196.61,2.547]
[1735481646089,14.61126313,196.69,196.6,2.9]
[1735481646291,0.80121081,196.68,196.56,3.86457125]
[1735481646886,56.02000063,196.67,196.56,3.86457125]
[1735481647088,12.25127394,196.66,196.56,3.86457125]
[1735481647282,0.80121081,196.65,196.56,3.86457125]
[1735481647986,4.6234271,196.65,196.56,3.86457125]
[1735481648288,0.80121081,196.64,196.56,3.86457125]
[1735481649280,0.80144819,196.63,196.56,3.86457125]
[1735481649485,0.80144819,196.62,196.56,3.86457125]
[1735481649792,0.80144819,196.61,196.56,3.86457125]
[1735481649992,11.45006313,196.65,196.56,3.86457125]
[1735481650184,0.80144604,196.64,196.56,3.86457125]
[1735481651097,0.80144604,196.63,196.56,3.86457125]
[1735481651287,0.80144604,196.62,196.56,3.86457125]
[1735481651588,11.45006313,196.66,196.56,6.41217125]
[1735481651893,0.80144808,196.65,196.56,6.41217125]
[1735481652094,11.45006313,196.66,196.56,6.41217125]
[1735481652296,0.80144808,196.65,196.56,6.41217125]
[1735481653200,0.80144808,196.65,196.56,3.86457125]
[1735481653689,0.80144808,196.65,196.61,2.547]
[1735481654290,7.62784684,196.66,196.61,2.547]
[1735481654997,3.1612,196.69,196.61,2.547]
[1735481655195,0.80119397,196.68,196.61,2.547]
[1735481657404,0.80119397,196.68,196.62,2.5469]
[1735481661899,3.1612,196.69,196.62,2.5469]
[1735481662099,0.80119441,196.68,196.62,2.5469]
[1735481664598,0.80118997,196.67,196.62,2.5469]
[1735481664800,0.80118997,196.66,196.62,2.5469]
[1735481664998,3.1612,196.69,196.6,2.9]
[1735481665199,0.80119471,196.68,196.57,2.9]
[1735481665400,3.70119471,196.68,196.57,2.9]
[1735481665601,0.80119471,196.67,196.58,2.5473]
[1735481666201,2.9,196.68,196.58,2.5473]
[1735481666398,0.80130585,196.67,196.58,2.5473]
[1735481667306,0.80130558,196.66,196.58,2.5473]
[1735481667496,0.80130558,196.65,196.58,2.5473]
[1735481667701,0.80130558,196.64,196.57,2.9]
[1735481668005,0.80130558,196.63,196.57,5.4475]
[1735481668207,2.9,196.68,196.57,2.9]
[1735481668407,0.80132701,196.67,196.56,3.86457125]
[1735481669802,56.02000063,196.65,196.56,3.86457125]
[1735481670109,16.673518,196.64,196.56,3.86457125]
[1735481670307,0.80157132,196.63,196.56,3.86457125]
[1735481671009,3.0817,196.62,196.56,3.86457125]
[1735481671210,0.80157132,196.61,196.56,3.86457125]
[1735481672207,3.0817,196.62,196.56,3.86457125]
[1735481672413,0.8015719,196.61,196.56,3.86457125]
[1735481673114,0.8015719,196.61,196.51,59.7618715]
[1735481673307,0.8015719,196.61,196.51,57.2135715]
[1735481675311,0.8015719,196.61,196.51,59.7618715]
[1735481676015,0.8015719,196.61,196.51,2.5483]
[1735481676209,0.8015719,196.61,196.49,2.9]
[1735481676714,0.8015719,196.61,196.49,5.4485]
[1735481676905,0.8015719,196.61,196.49,2.5485]
[1735481677304,3.0817,196.62,196.48,2.9]
[1735481677613,0.80176336,196.61,196.47,2.5487]
[1735481678615,0.80176336,196.61,196.4,4.04920163]
[1735481678911,0.80176336,196.61,196.41,2.9]
[1735481679109,0.80176336,196.61,196.42,2.9]
[1735481679410,0.80176336,196.61,196.43,2.5493]
[1735481679713,56.82176399,196.61,196.43,2.5493]
[1735481679914,12.25197873,196.6,196.43,2.5493]
[1735481680115,3.70183205,196.59,196.43,2.5493]
[1735481680316,0.80183205,196.58,196.43,2.5493]
[1735481680813,1.539,196.57,196.43,2.5493]
[1735481681009,0.80183205,196.56,196.42,2.9]
[1735481681415,3.0976,196.55,196.42,2.9]
[1735481681717,0.80183205,196.54,196.44,2.5492]
[1735481682314,0.80189935,196.53,196.41,3.8672085]
[1735481682514,0.80189935,196.52,196.41,3.8672085]
[1735481682713,0.80189935,196.51,196.41,3.8672085]
[1735481682914,0.80189935,196.5,196.41,6.4167085]
[1735481683116,8.45465685,196.55,196.41,6.4167085]
[1735481683117,0.80189935,196.49,196.41,6.4167085]
[1735481683317,8.45465685,196.55,196.41,6.4167085]
[1735481683517,0.80195334,196.54,196.41,6.4167085]
[1735481687120,0.80195334,196.54,196.41,3.8672085]
[1735481687318,8.45465685,196.55,196.41,3.8672085]
[1735481687617,0.80195905,196.54,196.41,3.8672085]
[1735481689923,8.45465685,196.55,196.41,3.8672085]
[1735481690130,0.8019563,196.54,196.41,3.8672085]
[1735481691029,0.80203721,196.53,196.41,3.8672085]
[1735481691231,0.80203721,196.52,196.41,3.8672085]
[1735481691431,0.80203721,196.51,196.41,3.8672085]
[1735481691632,3.70203721,196.5,196.41,3.8672085]
[1735481691930,0.80203721,196.49,196.41,3.8672085]
[1735481692531,0.80204775,196.48,196.41,3.8672085]
[1735481693127,0.80204799,196.47,196.41,3.8672085]
[1735481694033,0.80218722,196.46,196.41,3.8672085]
[1735481694229,0.80218722,196.45,196.41,3.8672085]
[1735481694428,0.80204775,196.48,196.41,3.8672085]
[1735481694730,0.80219648,196.47,196.41,3.8672085]
[1735481695134,0.80219246,196.46,196.41,3.8672085]
[1735481695328,0.80219246,196.45,196.41,3.8672085]
[1735481695528,0.80204775,196.48,196.41,3.8672085]
[1735481695730,0.80219241,196.47,196.41,3.8672085]
[1735481697630,0.80219887,196.46,196.41,3.8672085]
[1735481697833,0.80204775,196.48,196.41,3.8672085]
[1735481698035,0.80210968,196.47,196.41,3.8672085]
[1735481701535,0.80210968,196.46,196.41,3.8672085]
[1735481701832,1.4596,196.5,196.41,3.8672085]
[1735481702036,0.80219197,196.49,196.41,3.8672085]
[1735481703132,0.80219197,196.49,196.38,57.25582189]
[1735481703333,3.0636,196.48,196.38,57.25582189]
[1735481703529,0.80219197,196.47,196.38,57.25582189]
[1735481703729,2.92,196.46,196.38,57.25582189]
[1735481703935,0.80219197,196.45,196.38,57.25582189]
[1735481704534,0.80233967,196.44,196.32,2.92]
[1735481704736,0.80233967,196.43,196.31,2.5509]
[1735481704930,0.80233967,196.42,196.31,2.5509]
[1735481705132,3.72233967,196.41,196.29,2.92]
[1735481705334,0.80233967,196.4,196.23,27.61057733]
[1735481705533,0.80233967,196.4,196.27,2.92]
[1735481705929,0.80247184,196.39,196.3,2.551]
[1735481706134,2.92,196.41,196.3,2.551]
[1735481706335,0.8025013,196.4,196.3,2.551]
[1735481707339,3.0636,196.48,196.27,2.92]
[1735481707538,3.722481,196.47,196.27,2.92]
[1735481707736,0.802481,196.46,196.27,2.92]
[1735481708042,0.802481,196.46,196.35,2.5504]
[1735481709738,3.0636,196.48,196.35,2.5504]
[1735481709939,3.72233253,196.47,196.35,2.5504]
[1735481710235,0.80233253,196.46,196.35,2.5504]
[1735481710539,0.80233253,196.46,196.34,2.5505]
[1735481712242,2.92,196.47,196.34,2.5505]
[1735481712544,0.80233294,196.46,196.33,5.4706]
[1735481713740,2.92,196.45,196.33,5.4706]
[1735481713940,0.80233294,196.44,196.33,5.4706]
[1735481714138,0.80233294,196.44,196.35,2.5503]
[1735481714337,0.80233294,196.43,196.33,2.92]
[1735481714540,1.4596,196.5,196.33,2.92]
[1735481714743,3.72224592,196.49,196.33,2.92]
[1735481714939,0.80224572,196.48,196.37,2.5501]
[1735481715148,0.80224572,196.48,196.38,2.92]
[1735481717545,0.80222258,196.47,196.38,2.92]
[1735481717745,0.80222258,196.46,196.38,2.92]
[1735481717944,0.80222258,196.45,196.38,2.92]
[1735481718146,2.92,196.49,196.38,2.92]
[1735481718445,0.80222123,196.48,196.38,2.92]
[1735481719845,0.80222123,196.47,196.38,2.92]
[1735481720146,0.80222709,196.46,196.32,5.4707]
[1735481720448,0.80222709,196.45,196.32,2.92]
[1735481720639,0.80241152,196.44,196.32,2.92]
[1735481720835,0.80241152,196.43,196.32,2.92]
[1735481721036,0.80241152,196.42,196.32,2.92]
[1735481721242,0.80241152,196.41,196.32,2.92]
[1735481721546,0.80241152,196.4,196.32,2.92]
[1735481721749,0.80241152,196.39,196.32,2.92]
[1735481721946,2.9,196.43,196.32,2.92]
[1735481722147,0.80245947,196.42,196.32,2.92]
[1735481724242,0.80245947,196.42,196.29,2.5511]
[1735481724448,0.80245947,196.42,196.3,2.9]
[1735481724944,0.80253154,196.41,196.3,2.9]
[1735481725147,0.80253154,196.4,196.3,2.9]
[1735481725348,0.80253154,196.39,196.3,2.9]
[1735481725549,0.80253154,196.38,196.29,2.5511]
[1735481725749,0.80253154,196.37,196.29,5.4511]
[1735481726043,0.80253154,196.36,196.29,5.4511]
[1735481726248,2.9,196.43,196.29,5.4511]
[1735481726546,0.80257901,196.42,196.29,5.4511]
[1735481727449,14.30725516,196.43,196.29,2.9]
[1735481727748,0.8025753,196.42,196.29,2.9]
[1735481728049,0.8025753,196.42,196.27,2.9]
[1735481728451,0.8025753,196.42,196.26,8.01358381]
[1735481730140,0.80269569,196.41,196.26,8.01358381]
[1735481730647,1.5587,196.4,196.26,8.01358381]
[1735481730847,0.80269569,196.39,196.26,8.01358381]
[1735481731141,2.9,196.38,196.26,8.01358381]
[1735481731447,4.4378,196.38,196.26,8.01358381]
[1735481731749,2.39919395,196.37,196.26,8.01358381]
[1735481731948,1.5964,196.37,196.26,8.01358381]
[1735481732846,1.5964,196.37,196.13,89.4622217]
[1735481733052,1.5964,196.37,196.19,2.5524]
[1735481733256,1.5964,196.37,196.2,2.9]
[1735481734355,1.5964,196.37,196.2,5.4523]
[1735481736252,2.9,196.36,196.2,2.9]
[1735481736755,2.9,196.36,196.19,2.5524]
[1735481736952,2.9,196.36,196.2,2.9]
[1735481737454,1.5964,196.37,196.2,2.9]
[1735481737654,2.9,196.36,196.2,2.9]
[1735481739350,2.9,196.36,196.19,2.5524]
[1735481739555,2.9,196.36,196.2,2.9]
[1735481740158,2.9,196.36,196.13,89.4622217]
[1735481740358,1.01858925,196.35,196.13,89.4622217]
[1735481741155,2.9,196.34,196.13,89.4622217]
[1735481741360,1.4701,196.33,196.13,89.4622217]
[1735481741759,1.01858925,196.35,196.13,89.4622217]
[1735481741959,2.9,196.46,196.14,6.94490294]
[1735481742158,2.9,196.46,196.15,4.04490294]
[1735481742354,2.9,196.46,196.25,2.5517]
[1735481742657,2.9,196.46,196.26,2.9]
[1735481743362,2.9,196.46,196.15,53.06]
[1735481743660,2.9,196.46,196.16,6.9414587]